[Event "Vener-dì-Lampo"]
[Site "Chess.com"]
[Date "2020.04.24"]
[Round "4"]
[White "SpessoInstabile"]
[Black "Mrtre7"]
[Result "0-1"]
[WhiteElo "1360"]
[BlackElo "1446"]
[TimeControl "300+2"]
[EndTime "12:17:30 PDT"]
[Termination "Mrtre7 ha vinto per scaccomatto"]

1. d4 {[%clk 0:05:01.9]} 1... d5 {[%clk 0:05:00.3]} 2. c4 {[%clk 0:04:55.2]}
2... dxc4 {[%clk 0:04:35.9]} 3. Nc3 {[%clk 0:04:54.9]} 3... Nf6 {[%clk
0:04:36.1]} 4. Nf3 {[%clk 0:04:54.3]} 4... Bf5 {[%clk 0:04:32.8]} 5. e3 {[%clk
0:04:55.5]} 5... c6 {[%clk 0:04:27.9]} 6. Bxc4 {[%clk 0:04:56.2]} 6... e6 {[%clk
0:04:28.3]} 7. O-O {[%clk 0:04:55.8]} 7... Be7 {[%clk 0:04:16.8]} 8. a3 {[%clk
0:04:54.8]} 8... a5 {[%clk 0:04:16.6]} 9. Be2 {[%clk 0:04:54.9]} 9... Nbd7
{[%clk 0:04:16.7]} 10. b3 {[%clk 0:04:56]} 10... O-O {[%clk 0:04:16.3]} 11. Bb2
{[%clk 0:04:57]} 11... Nb6 {[%clk 0:04:05.7]} 12. h3 {[%clk 0:04:58.1]} 12... c5
{[%clk 0:04:05.6]} 13. Re1 {[%clk 0:04:40.8]} 13... cxd4 {[%clk 0:03:58.2]} 14.
Nxd4 {[%clk 0:04:41.1]} 14... Bg6 {[%clk 0:03:53.4]} 15. Bd3 {[%clk 0:04:39.3]}
15... Rc8 {[%clk 0:03:51.6]} 16. Bxg6 {[%clk 0:04:39.5]} 16... hxg6 {[%clk
0:03:51.3]} 17. Rc1 {[%clk 0:04:39.6]} 17... Nbd5 {[%clk 0:03:47.4]} 18. Nxd5
{[%clk 0:04:38.6]} 18... Qxd5 {[%clk 0:03:45]} 19. Nf3 {[%clk 0:04:39.3]} 19...
Rxc1 {[%clk 0:03:23.4]} 20. Qxc1 {[%clk 0:04:37.8]} 20... Qxb3 {[%clk
0:03:23.9]} 21. Re2 {[%clk 0:04:33.2]} 21... Rd8 {[%clk 0:03:05.4]} 22. Rc2
{[%clk 0:04:31]} 22... Qd3 {[%clk 0:02:08.6]} 23. Nd4 {[%clk 0:04:31.1]} 23...
Ne4 {[%clk 0:01:58.9]} 24. Kh2 {[%clk 0:04:22.5]} 24... Nc5 {[%clk 0:01:02]} 25.
Rd2 {[%clk 0:04:13.8]} 25... Qe4 {[%clk 0:00:56]} 26. Qc3 {[%clk 0:03:32.1]}
26... Na4 {[%clk 0:00:51]} 27. Qb3 {[%clk 0:03:32.1]} 27... Nxb2 {[%clk
0:00:49.1]} 28. Qxb2 {[%clk 0:03:32]} 28... Bf6 {[%clk 0:00:50.2]} 29. Qa2
{[%clk 0:03:19.4]} 29... Qe5+ {[%clk 0:00:50.4]} 30. f4 {[%clk 0:03:18.2]} 30...
Qc5 {[%clk 0:00:44.9]} 31. Nf3 {[%clk 0:03:16.2]} 31... Rxd2 {[%clk 0:00:41.1]}
32. Qxd2 {[%clk 0:03:17]} 32... Qxa3 {[%clk 0:00:41.6]} 33. Qd7 {[%clk
0:03:14.5]} 33... b5 {[%clk 0:00:41.9]} 34. Qc8+ {[%clk 0:03:12.4]} 34... Kh7
{[%clk 0:00:42.4]} 35. Qa6 {[%clk 0:03:11.5]} 35... b4 {[%clk 0:00:42]} 36. Qb5
{[%clk 0:03:12]} 36... b3 {[%clk 0:00:42.1]} 37. Nd2 {[%clk 0:03:11.4]} 37... a4
{[%clk 0:00:37.3]} 38. Kg3 {[%clk 0:03:05.1]} 38... Qc1 {[%clk 0:00:38]} 39. Qb4
{[%clk 0:03:04.4]} 39... b2 {[%clk 0:00:34.9]} 40. Nb3 {[%clk 0:02:44.5]} 40...
b1=Q {[%clk 0:00:27.2]} 41. Qxa4 {[%clk 0:02:40]} 41... Qc3 {[%clk 0:00:20.2]}
42. Nd4 {[%clk 0:02:38.2]} 42... Bxd4 {[%clk 0:00:20.7]} 43. Qd7 {[%clk
0:02:32.1]} 43... Qxe3+ {[%clk 0:00:21.3]} 44. Kg4 {[%clk 0:02:32.8]} 44... Qd1+
{[%clk 0:00:21.5]} 45. Kh4 {[%clk 0:02:31.2]} 45... Qf2+ {[%clk 0:00:21.3]} 46.
g3 {[%clk 0:02:31]} 46... Qdg1 {[%clk 0:00:20.5]} 47. Qxf7 {[%clk 0:02:29.4]}
47... Qfxg3# {[%clk 0:00:21.2]} 0-1

[Event "Vener-dì-Lampo"]
[Site "Chess.com"]
[Date "2020.04.24"]
[Round "4"]
[White "pedrak"]
[Black "mr6701"]
[Result "0-1"]
[WhiteElo "1987"]
[BlackElo "1979"]
[TimeControl "300+2"]
[EndTime "12:20:43 PDT"]
[Termination "mr6701 ha vinto per abbandono"]

1. d4 {[%clk 0:05:01.9]} 1... d5 {[%clk 0:05:00.3]} 2. Nf3 {[%clk 0:05:01.9]}
2... e6 {[%clk 0:05:01.3]} 3. Bf4 {[%clk 0:05:01.5]} 3... Nf6 {[%clk 0:05:02.4]}
4. e3 {[%clk 0:05:01.8]} 4... Bd6 {[%clk 0:05:00.9]} 5. Bg3 {[%clk 0:05:01.8]}
5... Ne4 {[%clk 0:05:01.3]} 6. Nbd2 {[%clk 0:05:00.4]} 6... f5 {[%clk
0:04:59.8]} 7. Bd3 {[%clk 0:04:56.3]} 7... O-O {[%clk 0:05:00.4]} 8. Ne5 {[%clk
0:04:55.5]} 8... c5 {[%clk 0:04:58.9]} 9. c3 {[%clk 0:04:55.5]} 9... Nc6 {[%clk
0:04:59.3]} 10. f4 {[%clk 0:04:50.5]} 10... cxd4 {[%clk 0:04:51.4]} 11. exd4
{[%clk 0:04:50.3]} 11... Bd7 {[%clk 0:04:47.3]} 12. O-O {[%clk 0:04:47.9]} 12...
Nxg3 {[%clk 0:04:45.4]} 13. hxg3 {[%clk 0:04:47.6]} 13... Nxe5 {[%clk 0:04:44]}
14. fxe5 {[%clk 0:04:42.2]} 14... Be7 {[%clk 0:04:44.5]} 15. Nf3 {[%clk
0:04:39]} 15... a6 {[%clk 0:04:35.4]} 16. Qe2 {[%clk 0:04:28.3]} 16... Rc8
{[%clk 0:04:28.8]} 17. Rae1 {[%clk 0:04:24.2]} 17... Qe8 {[%clk 0:04:21]} 18.
Nh2 {[%clk 0:04:20.9]} 18... g5 {[%clk 0:04:04.7]} 19. g4 {[%clk 0:04:10.4]}
19... f4 {[%clk 0:04:04.8]} 20. Nf3 {[%clk 0:04:07.7]} 20... h6 {[%clk
0:04:01.3]} 21. Kf2 {[%clk 0:04:06.3]} 21... Kg7 {[%clk 0:03:54.4]} 22. Rh1
{[%clk 0:04:03.4]} 22... Rh8 {[%clk 0:03:54.5]} 23. Rh3 {[%clk 0:03:42.9]} 23...
Qf8 {[%clk 0:03:54.4]} 24. Reh1 {[%clk 0:03:41.3]} 24... Be8 {[%clk 0:03:55.5]}
25. Bb1 {[%clk 0:03:38.1]} 25... Bg6 {[%clk 0:03:54.6]} 26. Bxg6 {[%clk
0:03:34.2]} 26... Kxg6 {[%clk 0:03:56.5]} 27. Qd3+ {[%clk 0:03:33.4]} 27... Kg7
{[%clk 0:03:57.3]} 28. Rh5 {[%clk 0:03:25.9]} 28... Qf7 {[%clk 0:03:54.7]} 29.
Nd2 {[%clk 0:03:01.6]} 29... Qg6 {[%clk 0:03:50.5]} 30. Qxg6+ {[%clk 0:03:00]}
30... Kxg6 {[%clk 0:03:52.4]} 31. Kf3 {[%clk 0:02:58.7]} 31... b5 {[%clk
0:03:51.5]} 32. a3 {[%clk 0:02:59]} 32... a5 {[%clk 0:03:51.9]} 33. Rc1 {[%clk
0:02:47.6]} 33... b4 {[%clk 0:03:51.6]} 34. axb4 {[%clk 0:02:47.8]} 34... axb4
{[%clk 0:03:52.6]} 35. Rhh1 {[%clk 0:02:45.4]} 35... bxc3 {[%clk 0:03:50]} 36.
bxc3 {[%clk 0:02:46.1]} 36... Ba3 {[%clk 0:03:31.6]} 37. Rc2 {[%clk 0:02:45.8]}
37... Rc7 {[%clk 0:03:23.7]} 38. Ra1 {[%clk 0:02:43.7]} 38... Be7 {[%clk
0:03:24.4]} 39. Ra6 {[%clk 0:02:42.9]} 39... Kf7 {[%clk 0:03:20.3]} 40. c4
{[%clk 0:02:42]} 40... Rhc8 {[%clk 0:03:12.6]} 41. c5 {[%clk 0:02:42.3]} 41...
Rb8 {[%clk 0:03:12.4]} 42. Rca2 {[%clk 0:02:36.5]} 42... Rbb7 {[%clk 0:03:09.8]}
43. Ke2 {[%clk 0:02:35]} 43... Rb4 {[%clk 0:03:00.7]} 44. Kd3 {[%clk 0:02:32.7]}
44... Bf8 {[%clk 0:02:53.7]} 45. Kc3 {[%clk 0:02:30.5]} 45... Rbb7 {[%clk
0:02:52.5]} 46. Nb3 {[%clk 0:02:28.1]} 46... h5 {[%clk 0:02:39.5]} 47. gxh5
{[%clk 0:02:27.4]} 47... g4 {[%clk 0:02:41.1]} 48. Na5 {[%clk 0:02:25.5]} 48...
Rb1 {[%clk 0:02:38.3]} 49. Nc6 {[%clk 0:02:18.9]} 49... Rf1 {[%clk 0:02:21.4]}
50. Nd8+ {[%clk 0:02:18.2]} 50... Ke7 {[%clk 0:02:09]} 51. Nxe6 {[%clk
0:02:16.9]} 51... Rb7 {[%clk 0:02:09.9]} 52. Nxf8 {[%clk 0:02:10.2]} 52... Kxf8
{[%clk 0:02:07]} 53. Rf6+ {[%clk 0:02:08]} 53... Kg7 {[%clk 0:02:02.3]} 54. c6
{[%clk 0:02:07.1]} 54... Rc7 {[%clk 0:01:37.9]} 55. h6+ {[%clk 0:02:02.1]} 55...
Kh7 {[%clk 0:01:36.2]} 56. Rd6 {[%clk 0:02:00.7]} 56... Rc1+ {[%clk 0:01:32.6]}
57. Kd2 {[%clk 0:01:56.8]} 57... R1xc6 {[%clk 0:01:34.5]} 58. Rxc6 {[%clk
0:01:56.4]} 58... Rxc6 {[%clk 0:01:34.9]} 59. Rc2 {[%clk 0:01:54]} 59... Rxh6
{[%clk 0:01:34.1]} 60. Rc7+ {[%clk 0:01:50]} 60... Kg8 {[%clk 0:01:32]} 61. Ke2
{[%clk 0:01:27.1]} 61... Ra6 {[%clk 0:01:22.9]} 62. Rc2 {[%clk 0:01:19]} 62...
Kf7 {[%clk 0:01:21.4]} 63. Kf2 {[%clk 0:01:18]} 63... Ke6 {[%clk 0:01:19.5]} 64.
Rd2 {[%clk 0:01:11.7]} 64... Kf5 {[%clk 0:01:19.6]} 65. Re2 {[%clk 0:01:10.6]}
65... g3+ {[%clk 0:01:12.1]} 66. Ke1 {[%clk 0:01:07.6]} 66... Ra1+ {[%clk
0:01:06.8]} 67. Kd2 {[%clk 0:01:08.2]} 67... f3 {[%clk 0:00:58.7]} 68. gxf3
{[%clk 0:01:00.1]} 68... g2 {[%clk 0:00:59.1]} 69. Rxg2 {[%clk 0:00:31.7]} 69...
Ra2+ {[%clk 0:00:57.9]} 70. Kc3 {[%clk 0:00:33.6]} 70... Rxg2 {[%clk 0:00:58.5]}
71. Kb4 {[%clk 0:00:35.5]} 71... Ke6 {[%clk 0:00:58.3]} 72. Kc5 {[%clk
0:00:35.6]} 72... Rf2 {[%clk 0:00:57.5]} 73. f4 {[%clk 0:00:35.4]} 73... Rxf4
{[%clk 0:00:58.1]} 0-1